[Event "Early-Titled-Tuesday-Blitz-October-10-2023"]
[Site "Chess.com"]
[Date "2023.10.10"]
[Round "11"]
[White "Amirreza_p"]
[Black "alexrustemov"]
[Result "1-0"]
[WhiteElo "2636"]
[BlackElo "2850"]
[TimeControl "180+1"]
[EndTime "10:06:21 PDT"]
[Termination "Amirreza_p won on time"]

1. c4 {[%clk 0:02:59.9]} 1... c5 {[%clk 0:02:58.8]} 2. Nc3 {[%clk 0:02:59.9]}
2... g6 {[%clk 0:02:58.9]} 3. g3 {[%clk 0:03:00.5]} 3... Bg7 {[%clk 0:02:59.3]}
4. Bg2 {[%clk 0:03:01.3]} 4... Nc6 {[%clk 0:02:59.9]} 5. Nf3 {[%clk 0:03:01.8]}
5... b6 {[%clk 0:03:00.1]} 6. O-O {[%clk 0:02:56.4]} 6... Bb7 {[%clk 0:03:00.5]}
7. e3 {[%clk 0:02:54]} 7... Bxc3 {[%clk 0:03:00.8]} 8. bxc3 {[%clk 0:02:52.2]}
8... d6 {[%clk 0:03:01.2]} 9. d3 {[%clk 0:02:51.7]} 9... Qc7 {[%clk 0:02:58.5]}
10. e4 {[%clk 0:02:51.3]} 10... h6 {[%clk 0:02:53.7]} 11. Be3 {[%clk 0:02:48.2]}
11... Nf6 {[%clk 0:02:52.8]} 12. h3 {[%clk 0:02:46.9]} 12... Nd7 {[%clk
0:02:51.4]} 13. Qd2 {[%clk 0:02:46.3]} 13... g5 {[%clk 0:02:50.1]} 14. Ne1
{[%clk 0:02:44.6]} 14... Rg8 {[%clk 0:02:46.1]} 15. Kh1 {[%clk 0:02:42.8]} 15...
Na5 {[%clk 0:02:44.3]} 16. f4 {[%clk 0:02:40.7]} 16... gxf4 {[%clk 0:02:43.1]}
17. gxf4 {[%clk 0:02:41.6]} 17... f5 {[%clk 0:02:41.8]} 18. exf5 {[%clk
0:02:14.1]} 18... O-O-O {[%clk 0:02:37.5]} 19. Kh2 {[%clk 0:02:05]} 19... Rdf8
{[%clk 0:02:34.2]} 20. Bxb7+ {[%clk 0:02:01.1]} 20... Qxb7 {[%clk 0:02:33.5]}
21. Nf3 {[%clk 0:01:58.9]} 21... Rxf5 {[%clk 0:02:32.6]} 22. Qe2 {[%clk
0:01:57.8]} 22... Nf6 {[%clk 0:02:27.6]} 23. Rg1 {[%clk 0:01:53]} 23... Re8
{[%clk 0:02:13]} 24. Rg7 {[%clk 0:01:46.7]} 24... Qd7 {[%clk 0:02:09.5]} 25.
Rag1 {[%clk 0:01:42.9]} 25... Rh5 {[%clk 0:02:09.2]} 26. R1g3 {[%clk 0:01:37.9]}
26... Qf5 {[%clk 0:01:58.2]} 27. Bd2 {[%clk 0:01:35.4]} 27... Kd8 {[%clk
0:01:56.5]} 28. Ng1 {[%clk 0:01:20.2]} 28... Nc6 {[%clk 0:01:53.8]} 29. Qg2
{[%clk 0:01:17.7]} 29... Kd7 {[%clk 0:01:53.2]} 30. Ne2 {[%clk 0:01:03.7]} 30...
Rh4 {[%clk 0:01:51.7]} 31. Rf3 {[%clk 0:00:59.7]} 31... Nh5 {[%clk 0:01:31.7]}
32. Rg4 {[%clk 0:00:53.1]} 32... Qf6 {[%clk 0:01:24.4]} 33. Be1 {[%clk 0:00:51]}
33... Rxg4 {[%clk 0:01:16.9]} 34. Qxg4+ {[%clk 0:00:51.9]} 34... Qe6 {[%clk
0:01:17.4]} 35. Re3 {[%clk 0:00:36.8]} 35... Qxg4 {[%clk 0:01:15.6]} 36. hxg4
{[%clk 0:00:37.7]} 36... Nf6 {[%clk 0:01:16]} 37. Kh3 {[%clk 0:00:37.9]} 37...
Rg8 {[%clk 0:01:15.6]} 38. Rg3 {[%clk 0:00:33]} 38... e5 {[%clk 0:01:09.3]} 39.
Bd2 {[%clk 0:00:28.7]} 39... e4 {[%clk 0:01:03.9]} 40. g5 {[%clk 0:00:16.7]}
40... hxg5 {[%clk 0:00:58.6]} 41. fxg5 {[%clk 0:00:17.6]} 41... Nh5 {[%clk
0:00:58.6]} 42. Re3 {[%clk 0:00:13.1]} 42... exd3 {[%clk 0:00:58.8]} 43. Rxd3
{[%clk 0:00:12.9]} 43... Ne5 {[%clk 0:00:59.4]} 44. Rd5 {[%clk 0:00:12.7]} 44...
Nxc4 {[%clk 0:00:57.7]} 45. Bc1 {[%clk 0:00:12.1]} 45... Ke6 {[%clk 0:00:55.5]}
46. Rd1 {[%clk 0:00:11.8]} 46... Ne5 {[%clk 0:00:54.9]} 47. Kh4 {[%clk
0:00:09.7]} 47... Rh8 {[%clk 0:00:54.8]} 48. Re1 {[%clk 0:00:05.9]} 48... Kf5
{[%clk 0:00:48.7]} 49. Rf1+ {[%clk 0:00:05.5]} 49... Ke4 {[%clk 0:00:47.2]} 50.
Ng3+ {[%clk 0:00:04.9]} 50... Nxg3+ {[%clk 0:00:45.7]} 51. Kxg3 {[%clk
0:00:05.8]} 51... Kd3 {[%clk 0:00:43.6]} 52. Rf6 {[%clk 0:00:05.5]} 52... d5
{[%clk 0:00:37]} 53. Bf4 {[%clk 0:00:04.7]} 53... Nc4 {[%clk 0:00:25.3]} 54. g6
{[%clk 0:00:04.4]} 54... Rg8 {[%clk 0:00:25.8]} 55. Bh6 {[%clk 0:00:03.8]} 55...
Nd6 {[%clk 0:00:21.6]} 56. Rxd6 {[%clk 0:00:03]} 56... Kxc3 {[%clk 0:00:19.1]}
57. g7 {[%clk 0:00:03.6]} 57... d4 {[%clk 0:00:19]} 58. Rf6 {[%clk 0:00:04.2]}
58... d3 {[%clk 0:00:18.2]} 59. Rf8 {[%clk 0:00:04.7]} 59... Rxg7+ {[%clk
0:00:18.1]} 60. Bxg7+ {[%clk 0:00:04.5]} 60... Kc2 {[%clk 0:00:18.8]} 61. Bh6
{[%clk 0:00:04.7]} 61... c4 {[%clk 0:00:19]} 62. Rf2+ {[%clk 0:00:05]} 62... Kb1
{[%clk 0:00:16.9]} 63. Rf1+ {[%clk 0:00:03.5]} 63... Kc2 {[%clk 0:00:15.8]} 64.
Rc1+ {[%clk 0:00:02.3]} 64... Kb2 {[%clk 0:00:13]} 65. Rxc4 {[%clk 0:00:03.2]}
65... Kxa2 {[%clk 0:00:13.5]} 66. Rd4 {[%clk 0:00:03.7]} 66... b5 {[%clk
0:00:09.8]} 67. Rxd3 {[%clk 0:00:04.4]} 67... a5 {[%clk 0:00:09.9]} 68. Bf8
{[%clk 0:00:04.6]} 68... b4 {[%clk 0:00:08.8]} 69. Kf2 {[%clk 0:00:05.3]} 69...
b3 {[%clk 0:00:09]} 70. Ke2 {[%clk 0:00:05.9]} 70... b2 {[%clk 0:00:08.3]} 71.
Ra3+ {[%clk 0:00:06.5]} 71... Kb1 {[%clk 0:00:08.6]} 72. Bg7 {[%clk 0:00:06.7]}
72... Kc2 {[%clk 0:00:07.6]} 73. Bxb2 {[%clk 0:00:07.4]} 1-0

[Event "Early-Titled-Tuesday-Blitz-October-10-2023"]
[Site "Chess.com"]
[Date "2023.10.10"]
[Round "11"]
[White "TatjanaVasilevich"]
[Black "Rsnr"]
[Result "0-1"]
[WhiteElo "2642"]
[BlackElo "2873"]
[TimeControl "180+1"]
[EndTime "10:06:22 PDT"]
[Termination "Rsnr won by checkmate"]

1. Nf3 {[%clk 0:02:54]} 1... d5 {[%clk 0:03:00.1]} 2. b3 {[%clk 0:02:53.7]} 2...
c6 {[%clk 0:02:57.8]} 3. Bb2 {[%clk 0:02:53.9]} 3... Bf5 {[%clk 0:02:58.5]} 4.
g3 {[%clk 0:02:54.2]} 4... e6 {[%clk 0:02:59]} 5. Bg2 {[%clk 0:02:54.7]} 5... h6
{[%clk 0:02:59.5]} 6. O-O {[%clk 0:02:55.2]} 6... Nf6 {[%clk 0:03:00.2]} 7. d4
{[%clk 0:02:54.8]} 7... Be7 {[%clk 0:03:00.1]} 8. c4 {[%clk 0:02:55.2]} 8... O-O
{[%clk 0:02:58.7]} 9. Nc3 {[%clk 0:02:55.4]} 9... a5 {[%clk 0:02:52.6]} 10. Ne5
{[%clk 0:02:52.4]} 10... Nbd7 {[%clk 0:02:45.6]} 11. f4 {[%clk 0:02:52]} 11...
Bh7 {[%clk 0:02:35]} 12. h3 {[%clk 0:02:49.1]} 12... Ne8 {[%clk 0:02:32.5]} 13.
e3 {[%clk 0:02:47.4]} 13... f6 {[%clk 0:02:32.5]} 14. Nxd7 {[%clk 0:02:47.2]}
14... Qxd7 {[%clk 0:02:33.4]} 15. c5 {[%clk 0:02:43.8]} 15... e5 {[%clk
0:02:11.9]} 16. Na4 {[%clk 0:02:33.1]} 16... Qd8 {[%clk 0:01:35]} 17. dxe5
{[%clk 0:02:32.7]} 17... fxe5 {[%clk 0:01:35.1]} 18. Bxe5 {[%clk 0:02:33.4]}
18... Nf6 {[%clk 0:01:30.1]} 19. Qd4 {[%clk 0:02:30.2]} 19... Rf7 {[%clk
0:01:28.9]} 20. a3 {[%clk 0:02:26.3]} 20... Nd7 {[%clk 0:01:28.7]} 21. b4 {[%clk
0:02:01.7]} 21... Nxe5 {[%clk 0:01:20.3]} 22. fxe5 {[%clk 0:02:01.5]} 22...
Rxf1+ {[%clk 0:01:20.5]} 23. Bxf1 {[%clk 0:02:01.4]} 23... axb4 {[%clk
0:01:20.3]} 24. axb4 {[%clk 0:02:02.3]} 24... Qf8 {[%clk 0:00:44.4]} 25. Be2
{[%clk 0:01:19.4]} 25... Qf5 {[%clk 0:00:39.9]} 26. Bg4 {[%clk 0:01:11.4]} 26...
Qc2 {[%clk 0:00:29.2]} 27. Nb6 {[%clk 0:01:02.6]} 27... Rxa1+ {[%clk 0:00:29.1]}
28. Qxa1 {[%clk 0:01:02.3]} 28... Be4 {[%clk 0:00:24.9]} 29. Qf1 {[%clk
0:00:58.5]} 29... Bg5 {[%clk 0:00:25.2]} 30. Qe2 {[%clk 0:00:46]} 30... Bxe3+
{[%clk 0:00:23.5]} 31. Kh2 {[%clk 0:00:36.4]} 31... Qc1 {[%clk 0:00:23.7]} 32.
Qd1 {[%clk 0:00:36.2]} 32... Qb2+ {[%clk 0:00:16.4]} 33. Qe2 {[%clk 0:00:36.3]}
33... Qd4 {[%clk 0:00:14.1]} 34. h4 {[%clk 0:00:32.8]} 34... Qd2 {[%clk
0:00:05.8]} 35. Qxd2 {[%clk 0:00:26.1]} 35... Bxd2 {[%clk 0:00:06.7]} 36. Bc8
{[%clk 0:00:22.6]} 36... Bxb4 {[%clk 0:00:06.6]} 37. Bxb7 {[%clk 0:00:23.1]}
37... Bxc5 {[%clk 0:00:06.9]} 38. Nd7 {[%clk 0:00:23.7]} 38... Be7 {[%clk
0:00:04.9]} 39. Bxc6 {[%clk 0:00:23.9]} 39... Kf7 {[%clk 0:00:05.6]} 40. Nb6
{[%clk 0:00:18.2]} 40... Ke6 {[%clk 0:00:06.1]} 41. Nd7 {[%clk 0:00:17]} 41...
g6 {[%clk 0:00:03.3]} 42. Kg1 {[%clk 0:00:16.6]} 42... Bd8 {[%clk 0:00:03.8]}
43. Kf2 {[%clk 0:00:16.8]} 43... Bc7 {[%clk 0:00:04]} 44. Nf8+ {[%clk
0:00:15.5]} 44... Kf7 {[%clk 0:00:03.4]} 45. Nd7 {[%clk 0:00:15.6]} 45... Ke7
{[%clk 0:00:03.3]} 46. Ke3 {[%clk 0:00:15.2]} 46... Bf5 {[%clk 0:00:03.6]} 47.
Nc5 {[%clk 0:00:15.5]} 47... Bxe5 {[%clk 0:00:03.7]} 48. Kf3 {[%clk 0:00:16.2]}
48... Kd6 {[%clk 0:00:04]} 49. Nd3 {[%clk 0:00:14.1]} 49... Bxd3 {[%clk
0:00:03.6]} 50. Be8 {[%clk 0:00:14.4]} 50... Be4+ {[%clk 0:00:04.2]} 51. Kg4
{[%clk 0:00:14.9]} 51... Ke6 {[%clk 0:00:05.1]} 52. Ba4 {[%clk 0:00:14.8]} 52...
h5+ {[%clk 0:00:05.7]} 53. Kg5 {[%clk 0:00:15.2]} 53... d4 {[%clk 0:00:06.2]}
54. Bb3+ {[%clk 0:00:15.3]} 54... Kd6 {[%clk 0:00:06.9]} 55. g4 {[%clk
0:00:15.8]} 55... hxg4 {[%clk 0:00:07]} 56. Kxg4 {[%clk 0:00:16.7]} 56... d3
{[%clk 0:00:07.7]} 57. h5 {[%clk 0:00:17.3]} 57... gxh5+ {[%clk 0:00:08]} 58.
Kxh5 {[%clk 0:00:18]} 58... Kc5 {[%clk 0:00:08.8]} 59. Kg4 {[%clk 0:00:18.7]}
59... Kd4 {[%clk 0:00:09.5]} 60. Kg5 {[%clk 0:00:18]} 60... Ke3 {[%clk
0:00:10.2]} 61. Bd1 {[%clk 0:00:18.1]} 61... d2 {[%clk 0:00:10.9]} 62. Kh4
{[%clk 0:00:18.2]} 62... Bf3 {[%clk 0:00:10.9]} 63. Bc2 {[%clk 0:00:17.3]} 63...
Kd4 {[%clk 0:00:09.3]} 64. Kg5 {[%clk 0:00:16.5]} 64... Ke3 {[%clk 0:00:08.9]}
65. Kf5 {[%clk 0:00:16.7]} 65... Bc3 {[%clk 0:00:08.8]} 66. Ke6 {[%clk 0:00:16]}
66... Kd4 {[%clk 0:00:08.8]} 67. Kd6 {[%clk 0:00:16.1]} 67... Be4 {[%clk
0:00:09]} 68. Bb3 {[%clk 0:00:16.2]} 68... Ke3 {[%clk 0:00:08.7]} 69. Kc5 {[%clk
0:00:16.3]} 69... Bd4+ {[%clk 0:00:09.5]} 70. Kc4 {[%clk 0:00:16.6]} 70... Bg6
{[%clk 0:00:09.6]} 71. Bd1 {[%clk 0:00:16.5]} 71... Bf7+ {[%clk 0:00:09.6]} 72.
Kb4 {[%clk 0:00:17.2]} 72... Kd3 {[%clk 0:00:10.1]} 73. Ka3 {[%clk 0:00:16.7]}
73... Bc5+ {[%clk 0:00:10.1]} 74. Kb2 {[%clk 0:00:17.1]} 74... Bd4+ {[%clk
0:00:10.8]} 75. Kb1 {[%clk 0:00:17.1]} 75... Kc3 {[%clk 0:00:11.3]} 76. Ka1
{[%clk 0:00:16.5]} 76... Bb3 {[%clk 0:00:11.1]} 77. Bc2 {[%clk 0:00:14.3]} 77...
Kxc2# {[%clk 0:00:11.1]} 0-1

[Event "Early-Titled-Tuesday-Blitz-October-10-2023"]
[Site "Chess.com"]
[Date "2023.10.10"]
[Round "11"]
[White "Jospem"]
[Black "dropstoneDP"]
[Result "1-0"]
[WhiteElo "3108"]
[BlackElo "3075"]
[TimeControl "180+1"]
[EndTime "10:06:26 PDT"]
[Termination "Jospem won on time"]

1. e4 {[%clk 0:03:00.9]} 1... e5 {[%clk 0:03:00.2]} 2. Nf3 {[%clk 0:03:00.9]}
2... Nf6 {[%clk 0:03:00.8]} 3. Nc3 {[%clk 0:02:54.4]} 3... Nc6 {[%clk
0:03:00.9]} 4. Bb5 {[%clk 0:02:55.1]} 4... Nd4 {[%clk 0:03:01]} 5. O-O {[%clk
0:02:55]} 5... c6 {[%clk 0:03:00.5]} 6. Ba4 {[%clk 0:02:52.4]} 6... b5 {[%clk
0:02:52.5]} 7. Bb3 {[%clk 0:02:52.1]} 7... Nxf3+ {[%clk 0:02:14.5]} 8. Qxf3
{[%clk 0:02:51.8]} 8... d6 {[%clk 0:02:10.2]} 9. d3 {[%clk 0:02:51.9]} 9... a5
{[%clk 0:02:06.8]} 10. a4 {[%clk 0:02:45.3]} 10... b4 {[%clk 0:02:05.4]} 11. Ne2
{[%clk 0:02:45.9]} 11... g6 {[%clk 0:01:46.5]} 12. h3 {[%clk 0:02:32.8]} 12...
Bg7 {[%clk 0:01:45]} 13. d4 {[%clk 0:02:22.3]} 13... O-O {[%clk 0:01:42.6]} 14.
dxe5 {[%clk 0:02:22.5]} 14... dxe5 {[%clk 0:01:43.5]} 15. Bg5 {[%clk 0:02:18.4]}
15... Qe7 {[%clk 0:01:38.3]} 16. Rad1 {[%clk 0:02:15.1]} 16... h6 {[%clk
0:01:36.8]} 17. Be3 {[%clk 0:02:12.4]} 17... Ba6 {[%clk 0:01:30.1]} 18. Rfe1
{[%clk 0:02:12.6]} 18... Rad8 {[%clk 0:01:13.8]} 19. Bb6 {[%clk 0:02:04]} 19...
Rxd1 {[%clk 0:01:12.1]} 20. Rxd1 {[%clk 0:02:04.9]} 20... c5 {[%clk 0:01:10.2]}
21. Qe3 {[%clk 0:01:44.9]} 21... Rc8 {[%clk 0:01:03.6]} 22. Bxa5 {[%clk
0:01:43]} 22... c4 {[%clk 0:01:01]} 23. Ba2 {[%clk 0:01:43.3]} 23... Bf8 {[%clk
0:00:53]} 24. c3 {[%clk 0:01:33.5]} 24... Qb7 {[%clk 0:00:47.3]} 25. Bb1 {[%clk
0:01:26.6]} 25... Bc5 {[%clk 0:00:40.3]} 26. Qf3 {[%clk 0:01:19.7]} 26... Kg7
{[%clk 0:00:26.4]} 27. cxb4 {[%clk 0:01:18.7]} 27... Bxb4 {[%clk 0:00:26]} 28.
Bxb4 {[%clk 0:01:19.6]} 28... Qxb4 {[%clk 0:00:26.1]} 29. Qc3 {[%clk 0:01:16.1]}
29... Qxa4 {[%clk 0:00:25.9]} 30. Rd6 {[%clk 0:01:10.5]} 30... Qb5 {[%clk
0:00:12.2]} 31. Kh2 {[%clk 0:00:47.3]} 31... Bb7 {[%clk 0:00:11.6]} 32. Ng3
{[%clk 0:00:46.2]} 32... Qc5 {[%clk 0:00:08.1]} 33. Rd2 {[%clk 0:00:46.7]} 33...
Bc6 {[%clk 0:00:07.1]} 34. f3 {[%clk 0:00:43.8]} 34... Rb8 {[%clk 0:00:06.6]}
35. Ne2 {[%clk 0:00:42.8]} 35... Qb4 {[%clk 0:00:05.4]} 36. Qc1 {[%clk
0:00:42.6]} 36... Nh5 {[%clk 0:00:03.6]} 37. g3 {[%clk 0:00:41.3]} 37... Nf6
{[%clk 0:00:03]} 38. Nc3 {[%clk 0:00:41.7]} 38... Qb6 {[%clk 0:00:02]} 39. Kg2
{[%clk 0:00:34.3]} 39... Rd8 {[%clk 0:00:02]} 40. Rf2 {[%clk 0:00:31.6]} 40...
Rd4 {[%clk 0:00:02.5]} 41. h4 {[%clk 0:00:30]} 41... Qd8 {[%clk 0:00:02.4]} 42.
Qe3 {[%clk 0:00:28.4]} 42... Qe7 {[%clk 0:00:02.4]} 43. Bc2 {[%clk 0:00:22.6]}
43... Qd6 {[%clk 0:00:02.5]} 44. Re2 {[%clk 0:00:19.9]} 44... Nd7 {[%clk
0:00:02.9]} 45. f4 {[%clk 0:00:13.7]} 45... Nc5 {[%clk 0:00:03.2]} 46. Qf3
{[%clk 0:00:14.4]} 46... Nd3 {[%clk 0:00:03.1]} 47. f5 {[%clk 0:00:13.5]} 47...
Qf6 {[%clk 0:00:03]} 48. b3 {[%clk 0:00:09.7]} 48... gxf5 {[%clk 0:00:01.3]} 49.
bxc4 {[%clk 0:00:07.2]} 49... fxe4 {[%clk 0:00:02.2]} 50. Qe3 {[%clk 0:00:07.4]}
50... Nc5 {[%clk 0:00:02]} 51. Rf2 {[%clk 0:00:07.2]} 51... Qe6 {[%clk
0:00:02.7]} 52. Kh2 {[%clk 0:00:03.9]} 52... f5 {[%clk 0:00:03.3]} 53. Ne2
{[%clk 0:00:03.9]} 53... Rxc4 {[%clk 0:00:02.5]} 54. Bb1 {[%clk 0:00:04.5]}
54... Rb4 {[%clk 0:00:02]} 55. Bc2 {[%clk 0:00:05.2]} 55... Nd3 {[%clk 0:00:02]}
56. Qa7+ {[%clk 0:00:02.9]} 56... Rb7 {[%clk 0:00:02]} 57. Qe3 {[%clk
0:00:03.5]} 57... Rf7 {[%clk 0:00:02.7]} 58. Bxd3 {[%clk 0:00:03.3]} 58... exd3
{[%clk 0:00:02]} 59. Qxd3 {[%clk 0:00:04.2]} 59... Qf6 {[%clk 0:00:02.7]} 60.
Qe3 {[%clk 0:00:03.9]} 60... f4 {[%clk 0:00:03]} 61. Qc3 {[%clk 0:00:02.7]}
61... fxg3+ {[%clk 0:00:03.9]} 62. Qxg3+ {[%clk 0:00:03.3]} 62... Qg6 {[%clk
0:00:03.5]} 63. Qxe5+ {[%clk 0:00:04]} 63... Kg8 {[%clk 0:00:03.5]} 64. Nf4
{[%clk 0:00:02]} 64... Qg4 {[%clk 0:00:03.2]} 65. h5 {[%clk 0:00:02.7]} 65...
Qh4+ {[%clk 0:00:03.2]} 66. Kg1 {[%clk 0:00:03.4]} 66... Rg7+ {[%clk 0:00:03.6]}
67. Kf1 {[%clk 0:00:03.6]} 67... Qh1+ {[%clk 0:00:02.3]} 68. Ke2 {[%clk
0:00:04]} 68... Qh4 {[%clk 0:00:02.2]} 69. Qe6+ {[%clk 0:00:04.1]} 69... Kh8
{[%clk 0:00:02.2]} 70. Qxc6 {[%clk 0:00:03.9]} 70... Qg4+ {[%clk 0:00:01.7]} 71.
Qf3 {[%clk 0:00:03.3]} 71... Re7+ {[%clk 0:00:01.8]} 72. Kf1 {[%clk 0:00:03.9]}
72... Qf5 {[%clk 0:00:01.6]} 73. Ng6+ {[%clk 0:00:04.5]} 73... Kg8 {[%clk
0:00:01.8]} 74. Nxe7+ {[%clk 0:00:04]} 1-0

[Event "Early-Titled-Tuesday-Blitz-October-10-2023"]
[Site "Chess.com"]
[Date "2023.10.10"]
[Round "11"]
[White "DeArron_Fox"]
[Black "Alina_Gumerovna"]
[Result "1/2-1/2"]
[WhiteElo "2500"]
[BlackElo "2140"]
[TimeControl "180+1"]
[EndTime "10:06:53 PDT"]
[Termination "Game drawn - insufficient material"]

1. d4 {[%clk 0:03:00.9]} 1... d5 {[%clk 0:02:59.7]} 2. c4 {[%clk 0:02:56.1]}
2... e6 {[%clk 0:02:59.3]} 3. Nc3 {[%clk 0:02:56.4]} 3... Nf6 {[%clk 0:02:58.7]}
4. Nf3 {[%clk 0:02:56.2]} 4... Be7 {[%clk 0:02:56.7]} 5. Bf4 {[%clk 0:02:53.5]}
5... O-O {[%clk 0:02:56.1]} 6. e3 {[%clk 0:02:54]} 6... c6 {[%clk 0:02:51.8]} 7.
c5 {[%clk 0:02:46.5]} 7... Nbd7 {[%clk 0:02:45.7]} 8. h3 {[%clk 0:02:40.2]} 8...
Re8 {[%clk 0:02:28.2]} 9. Bd3 {[%clk 0:02:08.5]} 9... Nf8 {[%clk 0:02:23.2]} 10.
O-O {[%clk 0:02:02.2]} 10... Ng6 {[%clk 0:02:21.5]} 11. Bh2 {[%clk 0:02:02.1]}
11... Nd7 {[%clk 0:02:18.6]} 12. b4 {[%clk 0:02:01.4]} 12... Bf6 {[%clk
0:02:11.8]} 13. e4 {[%clk 0:01:13.2]} 13... dxe4 {[%clk 0:02:04.6]} 14. Nxe4
{[%clk 0:01:11.6]} 14... Be7 {[%clk 0:02:01.8]} 15. Nd6 {[%clk 0:00:18]} 15...
Bxd6 {[%clk 0:02:01.2]} 16. Bxd6 {[%clk 0:00:18.9]} 16... Nf6 {[%clk 0:02:02]}
17. Ne5 {[%clk 0:00:15]} 17... Nd5 {[%clk 0:02:01.7]} 18. a3 {[%clk 0:00:09.5]}
18... a5 {[%clk 0:01:51.5]} 19. Qd2 {[%clk 0:00:05.3]} 19... Bd7 {[%clk
0:01:46.7]} 20. f4 {[%clk 0:00:02.3]} 20... b6 {[%clk 0:01:44.8]} 21. bxa5
{[%clk 0:00:02.2]} 21... bxc5 {[%clk 0:01:42.9]} 22. dxc5 {[%clk 0:00:01.8]}
22... Nf8 {[%clk 0:01:10.8]} 23. Nxd7 {[%clk 0:00:01.7]} 23... Nxd7 {[%clk
0:01:09.2]} 24. f5 {[%clk 0:00:02.6]} 24... exf5 {[%clk 0:01:08.3]} 25. Bxf5
{[%clk 0:00:03.5]} 25... g6 {[%clk 0:01:07.4]} 26. Bxd7 {[%clk 0:00:02.1]} 26...
Qxd7 {[%clk 0:01:07.1]} 27. Rfe1 {[%clk 0:00:02.2]} 27... Rxe1+ {[%clk
0:01:01.5]} 28. Rxe1 {[%clk 0:00:03.1]} 28... Qd8 {[%clk 0:00:59.9]} 29. Re5
{[%clk 0:00:02.6]} 29... Qxa5 {[%clk 0:00:55.1]} 30. Re8+ {[%clk 0:00:02.5]}
30... Kg7 {[%clk 0:00:53.7]} 31. Qd4+ {[%clk 0:00:01.6]} 31... f6 {[%clk
0:00:51.9]} 32. Rxa8 {[%clk 0:00:01.9]} 32... Qxa8 {[%clk 0:00:50.6]} 33. Qb2
{[%clk 0:00:02.8]} 33... Qa6 {[%clk 0:00:43.6]} 34. Kh2 {[%clk 0:00:02.1]} 34...
h5 {[%clk 0:00:37.5]} 35. Qb8 {[%clk 0:00:02.6]} 35... Qxa3 {[%clk 0:00:17.7]}
36. Qb7+ {[%clk 0:00:02.1]} 36... Kh6 {[%clk 0:00:17.6]} 37. Qxc6 {[%clk
0:00:03]} 37... Qd3 {[%clk 0:00:14.2]} 38. Bf8+ {[%clk 0:00:02.4]} 38... Kg5
{[%clk 0:00:13.4]} 39. Qd6 {[%clk 0:00:02.6]} 39... Qf5 {[%clk 0:00:12.6]} 40.
c6 {[%clk 0:00:02.5]} 40... Qe4 {[%clk 0:00:07.8]} 41. Qg3+ {[%clk 0:00:02.4]}
41... Kf5 {[%clk 0:00:07]} 42. c7 {[%clk 0:00:02.8]} 42... Nxc7 {[%clk 0:00:04]}
43. Qxc7 {[%clk 0:00:02.3]} 43... h4 {[%clk 0:00:04.9]} 44. Qd7+ {[%clk
0:00:02.4]} 44... Qe6 {[%clk 0:00:05]} 45. Qxe6+ {[%clk 0:00:02.6]} 45... Kxe6
{[%clk 0:00:05.9]} 46. Kg1 {[%clk 0:00:02.9]} 46... g5 {[%clk 0:00:06.2]} 47.
Kf2 {[%clk 0:00:03.4]} 47... f5 {[%clk 0:00:07.1]} 48. Kf3 {[%clk 0:00:02.6]}
48... Kf7 {[%clk 0:00:05.6]} 49. Bd6 {[%clk 0:00:02]} 49... Kg6 {[%clk
0:00:06.5]} 50. Be7 {[%clk 0:00:02.1]} 50... Kh5 {[%clk 0:00:06.9]} 51. Bd8
{[%clk 0:00:02]} 51... g4+ {[%clk 0:00:07.1]} 52. hxg4+ {[%clk 0:00:01.8]} 52...
fxg4+ {[%clk 0:00:07.2]} 53. Kf2 {[%clk 0:00:02.4]} 53... h3 {[%clk 0:00:08.1]}
54. g3 {[%clk 0:00:02.5]} 54... Kg6 {[%clk 0:00:08.4]} 55. Kg1 {[%clk
0:00:01.4]} 55... Kf5 {[%clk 0:00:09.3]} 56. Bc7 {[%clk 0:00:01.6]} 56... Ke4
{[%clk 0:00:10.2]} 57. Bf4 {[%clk 0:00:01.8]} 57... Kf3 {[%clk 0:00:11.1]} 58.
Kh2 {[%clk 0:00:01.9]} 58... Kf2 {[%clk 0:00:12]} 59. Be5 {[%clk 0:00:01.6]}
59... Kf1 {[%clk 0:00:12.9]} 60. Bd4 {[%clk 0:00:02]} 60... Ke2 {[%clk
0:00:13.2]} 61. Kg1 {[%clk 0:00:02.5]} 61... Kf3 {[%clk 0:00:12.9]} 62. Be5
{[%clk 0:00:01.9]} 62... Ke4 {[%clk 0:00:12.9]} 63. Bc7 {[%clk 0:00:01.7]} 63...
Kf3 {[%clk 0:00:12.9]} 64. Kh1 {[%clk 0:00:01.8]} 64... Ke2 {[%clk 0:00:13.8]}
65. Kh2 {[%clk 0:00:02]} 65... Ke1 {[%clk 0:00:14.7]} 66. Kg1 {[%clk 0:00:02.4]}
66... Ke2 {[%clk 0:00:14.9]} 67. Bb6 {[%clk 0:00:02.9]} 67... Kf3 {[%clk
0:00:14.8]} 68. Kh2 {[%clk 0:00:02.6]} 68... Ke4 {[%clk 0:00:14.6]} 69. Bc5
{[%clk 0:00:01.5]} 69... Kd5 {[%clk 0:00:14.2]} 70. Ba7 {[%clk 0:00:01.3]} 70...
Ke4 {[%clk 0:00:15.1]} 71. Kg1 {[%clk 0:00:01.6]} 71... Kf3 {[%clk 0:00:15.4]}
72. Bb8 {[%clk 0:00:01.7]} 72... Ke2 {[%clk 0:00:15.6]} 73. Bc7 {[%clk
0:00:01.5]} 73... Ke1 {[%clk 0:00:14.7]} 74. Bb6 {[%clk 0:00:02.1]} 74... Ke2
{[%clk 0:00:15.2]} 75. Ba5 {[%clk 0:00:02.5]} 75... Kf3 {[%clk 0:00:16.1]} 76.
Be1 {[%clk 0:00:02.7]} 76... Ke2 {[%clk 0:00:15.6]} 77. Bb4 {[%clk 0:00:02.9]}
77... Kf3 {[%clk 0:00:16.5]} 78. Kh2 {[%clk 0:00:03.3]} 78... Ke4 {[%clk
0:00:17.4]} 79. Bd6 {[%clk 0:00:02.1]} 79... Kf3 {[%clk 0:00:18.3]} 80. Kg1
{[%clk 0:00:01.9]} 80... Ke2 {[%clk 0:00:19.2]} 81. Bc7 {[%clk 0:00:01.9]} 81...
Kd3 {[%clk 0:00:20.1]} 82. Kh1 {[%clk 0:00:01.2]} 82... Ke4 {[%clk 0:00:21]} 83.
Bb6 {[%clk 0:00:01.6]} 83... Kf5 {[%clk 0:00:21.9]} 84. Bg1 {[%clk 0:00:01.7]}
84... Ke4 {[%clk 0:00:21.8]} 85. Bh2 {[%clk 0:00:02.4]} 85... Kf3 {[%clk
0:00:22.3]} 86. Kg1 {[%clk 0:00:03.1]} 86... Ke2 {[%clk 0:00:22.5]} 87. Kh1
{[%clk 0:00:03.2]} 87... Kf2 {[%clk 0:00:22.9]} 88. Bg1+ {[%clk 0:00:03.7]}
88... Kxg3 {[%clk 0:00:23.4]} 89. Bh2+ {[%clk 0:00:04.2]} 89... Kf3 {[%clk
0:00:23.8]} 90. Bd6 {[%clk 0:00:02.7]} 90... Kf2 {[%clk 0:00:23.9]} 91. Bh2
{[%clk 0:00:02.8]} 91... Kf3 {[%clk 0:00:21.6]} 92. Bd6 {[%clk 0:00:03.1]} 92...
g3 {[%clk 0:00:21.9]} 93. Bxg3 {[%clk 0:00:03.3]} 93... Kxg3 {[%clk 0:00:22.8]}
94. Kg1 {[%clk 0:00:04.2]} 94... Kh4 {[%clk 0:00:22.9]} 95. Kh1 {[%clk
0:00:05.1]} 95... Kg4 {[%clk 0:00:23.6]} 96. Kh2 {[%clk 0:00:06]} 96... Kh4
{[%clk 0:00:23.9]} 97. Kh1 {[%clk 0:00:06.9]} 97... Kg3 {[%clk 0:00:24.8]} 98.
Kg1 {[%clk 0:00:07.8]} 98... h2+ {[%clk 0:00:25.7]} 99. Kh1 {[%clk 0:00:08.7]}
99... Kf2 {[%clk 0:00:26.3]} 100. Kxh2 {[%clk 0:00:09.6]} 1/2-1/2